bitfinex/quotes_ETHUSD_20260308
["timestamp","ask_amount","ask_price","bid_price","bid_amount"]
[1772954388962,1.75349427,1957.4,1957.1,0.47475424]
[1772954397988,1.7535,1957.4,1957.1,0.47475424]
[1772954398889,0.47628857,1957.4,1957.1,0.47475424]
[1772954399190,1.75542625,1957.6,1957.2,0.47375424]
[1772954400315,0.002,1957.6,1957.2,0.47375424]
[1772954400901,0.47828857,1957.9,1957.6,0.47375424]
[1772954401055,0.002,1957.9,1957.6,0.47375424]
[1772954401459,0.002,1957.9,1957.7,0.47375424]
[1772954403052,3.33946455,1958.3,1957.9,0.49558662]
[1772954403875,1.74746455,1958.3,1957.9,0.49558662]
[1772954404073,1.28265785,1958.3,1957.9,0.49558662]
[1772954404656,0.4648067,1958.5,1957.7,1.27700638]
[1772954404855,0.4648067,1958.4,1958.0,0.49558662]
[1772954406394,0.4648067,1958.4,1957.4,0.49558662]
[1772954407378,0.4648067,1958.2,1957.6,0.49558662]
[1772954409514,1.74149049,1958.2,1957.8,0.49558662]
[1772954410003,1.74149282,1958.2,1957.8,0.49558662]
[1772954410356,2.87057012,1958.4,1957.8,0.49558662]
[1772954410478,1.594,1958.4,1957.8,0.49558662]
[1772954410679,2.0588067,1958.4,1957.8,0.49558662]
[1772954411175,1.2764941,1958.5,1957.8,0.49558662]
[1772954411378,1.74124,1958.6,1957.8,0.49558662]
[1772954411580,0.4648067,1958.5,1958.0,0.49558662]
[1772954413379,1.66601091,1958.9,1958.0,0.49558662]
[1772954413714,1.66601091,1958.9,1958.2,0.49558662]
[1772954413885,2.13081761,1958.9,1958.2,0.49558662]
[1772954414109,0.85454474,1958.9,1958.2,0.49558662]
[1772954414311,0.38973804,1958.9,1958.2,0.49558662]
[1772954414837,0.4648067,1959.4,1958.2,1.331]
[1772954415003,0.33165741,1959.9,1958.8,0.49558662]
[1772954415207,0.4648067,1960.6,1959.2,0.49558662]
[1772954415404,0.4648067,1960.6,1959.3,0.49558662]
[1772954415607,2.99581371,1960.7,1959.4,0.49558662]
[1772954415608,0.4648067,1960.2,1959.4,0.49558662]
[1772954415807,0.6215573,1960.7,1959.4,0.49558662]
[1772954416008,0.4648067,1960.6,1959.4,0.49558662]
[1772954417004,0.4648067,1960.3,1959.2,0.49558662]
[1772954417326,0.4648067,1960.1,1959.2,0.49558662]
[1772954417725,0.4648067,1959.9,1959.0,0.49712548]
[1772954417911,0.4648067,1959.9,1959.0,0.00153886]
[1772954417912,0.4648067,1959.8,1959.0,0.00153886]
[1772954418234,0.4648067,1959.6,1959.0,0.00153886]
[1772954418436,0.4648067,1959.3,1958.2,0.49558662]
[1772954418939,1.499,1959.5,1958.2,0.49558662]
[1772954418940,0.4648067,1959.0,1958.2,0.49558662]
[1772954419233,0.4648067,1959.0,1958.1,1.51488818]
[1772954419704,0.4648067,1958.8,1958.1,1.51488818]
[1772954420110,0.4648067,1958.8,1958.0,0.49712548]
[1772954421235,1.461,1958.8,1958.0,0.49712548]
[1772954421441,0.4648067,1958.7,1958.0,0.49712548]
[1772954421939,1.74122863,1958.6,1958.0,0.49712548]
[1772954422916,1.27642193,1958.6,1958.0,0.49712548]
[1772954424740,1.2762916,1958.8,1958.0,1.7739121]
[1772954424939,1.2762916,1958.8,1958.1,0.49558662]
[1772954425648,1.7410983,1958.8,1958.1,0.49558662]
[1772954425810,1.2762916,1958.8,1958.1,0.49558662]
[1772954427040,5.1050774,1958.9,1958.1,0.49558662]
[1772954428337,5.1050774,1958.9,1958.3,0.49558662]
[1772954428842,5.5698841,1958.9,1958.3,0.49558662]
[1772954429142,0.4648067,1958.8,1958.3,0.49558662]
[1772954430736,5.5698841,1958.9,1958.3,0.49558662]
[1772954430936,1.27635676,1958.7,1958.2,0.001]
[1772954431142,1.74116346,1958.7,1958.2,0.49658662]
[1772954431343,1.27635676,1958.7,1958.2,0.49658662]
[1772954431647,1.27634171,1958.8,1958.2,0.49658662]
[1772954434344,1.27634171,1958.8,1958.3,0.47686321]
[1772954434645,0.46666436,1959.1,1958.3,0.47686321]
[1772954434820,1.74263026,1959.3,1958.4,0.47686321]
[1772954435023,1.74263026,1959.3,1958.6,0.47686321]
[1772954435219,1.2759659,1959.3,1958.7,0.47686321]
[1772954435545,5.10372839,1959.4,1958.7,0.47686321]
[1772954436113,1.74253995,1959.5,1958.8,0.47686321]
[1772954436316,1.27587559,1959.5,1958.9,0.45133608]
[1772954436511,0.46666436,1959.4,1958.8,2.26]
[1772954436946,0.46666436,1959.4,1958.8,2.73686321]
[1772954437871,1.2759659,1959.3,1958.8,2.73686321]
[1772954438817,0.46666436,1959.2,1958.8,2.26]
[1772954439544,0.46666436,1959.2,1958.4,0.47686321]
[1772954440237,0.46666436,1959.0,1958.4,0.47686321]
[1772954441521,0.46666436,1959.0,1958.3,0.001]
[1772954441715,1.27609616,1959.1,1958.4,0.47686321]
[1772954442151,0.46666436,1959.1,1958.4,0.47686321]
[1772954444465,1.74282566,1959.0,1958.4,0.47686321]
[1772954446774,1.2761613,1959.0,1958.4,0.47686321]
[1772954447138,0.46666436,1958.9,1958.2,0.001]
[1772954448750,0.46666436,1958.7,1958.2,0.001]
[1772954449153,0.46666436,1958.6,1958.2,0.001]
[1772954450852,0.46666436,1958.4,1958.2,0.001]
[1772954453077,1.27661747,1958.3,1958.2,0.001]
[1772954455955,1.27661747,1958.3,1958.0,0.00253886]
[1772954456178,0.46666436,1958.2,1958.0,0.00253886]
[1772954456658,1.27661747,1958.3,1958.0,0.00253886]
[1772954456860,1.27661747,1958.3,1958.0,0.47940207]
[1772954460979,1.74328183,1958.3,1958.0,0.00253886]
[1772954461183,1.74328183,1958.3,1957.8,0.001]
[1772954461184,0.46666436,1958.2,1957.8,0.001]
[1772954461350,0.46666436,1958.0,1957.8,0.001]
[1772954462183,1.74354264,1957.9,1957.8,0.001]
[1772954463201,0.48965159,1957.8,1957.3,0.47686321]
[1772954463613,0.48965159,1957.8,1957.1,0.49191823]
[1772954464409,0.48965159,1957.6,1957.2,0.49191823]
[1772954464904,0.48965159,1957.6,1957.2,0.001]
[1772954466193,1.27687828,1957.9,1957.4,0.49091823]
[1772954466733,1.76652987,1957.9,1957.4,0.49091823]
[1772954467402,0.48965159,1957.8,1957.2,1.76920915]
[1772954468021,0.48965159,1957.8,1957.2,0.49191823]
[1772954468211,0.48965159,1957.6,1957.2,0.001]
[1772954468992,0.48965159,1957.6,1957.2,0.49191823]
[1772954469406,0.48965159,1957.6,1957.5,0.001]
[1772954470284,1.76672555,1957.6,1957.5,0.001]
[1772954475533,0.48965159,1957.5,1957.2,0.001]
[1772954478643,0.48965159,1957.3,1957.2,0.001]
[1772954480829,1.76692129,1957.3,1957.2,0.001]
[1772954484322,1.2772697,1957.3,1957.1,0.001]
[1772954484525,0.48965159,1957.1,1956.9,0.001]
[1772954485224,1.604,1957.2,1956.5,0.001]
[1772954485225,0.48965159,1956.9,1956.5,0.001]
[1772954485451,0.48965159,1956.9,1956.2,0.001]
[1772954485452,0.48965159,1956.7,1956.2,0.001]
[1772954485661,0.48965159,1956.6,1956.2,0.001]
[1772954487064,0.48965159,1956.5,1956.2,0.001]
[1772954487266,0.92020981,1956.6,1956.0,0.00253886]
[1772954487267,0.48965159,1956.3,1956.0,0.00253886]
[1772954487489,0.48965159,1956.1,1956.0,0.00253886]
[1772954487641,0.48965159,1956.1,1955.7,1e-08]
[1772954489075,0.48965159,1956.1,1955.5,0.00551248]
[1772954489563,1.2781186,1956.0,1955.5,0.00551248]
[1772954489743,1.77536236,1956.0,1955.5,0.00551248]
[1772954490456,0.49724376,1956.0,1955.5,0.00551248]
[1772954490780,1.27753078,1956.9,1955.7,0.00551248]
[1772954491788,1.27753078,1956.9,1955.8,0.00551248]
[1772954491995,1.77477454,1956.9,1955.8,0.00551248]
[1772954494884,0.49724376,1956.8,1955.8,0.00551248]
[1772954496581,0.49724376,1956.6,1955.8,0.00551248]
[1772954496778,0.49724376,1956.6,1955.8,0.00651248]
[1772954498083,0.49724376,1956.6,1955.8,0.001]
[1772954498296,0.49724376,1956.6,1955.9,0.00551248]
[1772954498983,0.49724376,1956.4,1955.9,0.00551248]
[1772954500514,0.49724376,1956.6,1955.9,0.00551248]
[1772954500669,1.77684481,1956.8,1955.9,0.00551248]
[1772954501178,0.49724376,1956.7,1955.9,0.00551248]
[1772954503203,1.77491407,1956.7,1956.0,0.00551248]
[1772954504075,0.49724376,1956.6,1956.0,0.00551248]
[1772954504689,0.49724376,1956.6,1956.1,0.00551248]
[1772954505698,0.49724376,1956.6,1956.1,1.28356574]
[1772954505900,0.49724376,1956.6,1956.2,0.00551248]
[1772954510516,0.49924376,1956.8,1956.2,0.00551248]
[1772954510886,0.49724376,1956.7,1956.2,0.00551248]
[1772954511088,0.49724376,1956.7,1956.1,3.53805326]
[1772954511288,0.49724376,1956.7,1956.2,0.00551248]
[1772954513419,0.49724376,1956.6,1956.2,0.00551248]
[1772954517522,0.49724376,1956.6,1956.1,0.00551248]
[1772954518420,0.49724376,1956.5,1956.0,0.00551248]
[1772954518932,0.49724376,1956.5,1955.9,0.00551248]
[1772954519712,0.002,1956.8,1955.9,0.00551248]
[1772954520018,0.49724376,1956.7,1955.9,0.00551248]
[1772954520311,0.49724376,1956.5,1955.8,0.001]
[1772954520697,0.49924376,1956.5,1955.8,0.00651248]
[1772954522313,0.002,1956.5,1955.8,0.00651248]
[1772954524334,0.002,1956.5,1956.0,0.00551248]
[1772954524836,0.002,1956.5,1956.1,0.00551248]
[1772954526204,0.49924376,1956.5,1956.1,0.00551248]
[1772954527240,0.49924376,1956.5,1956.2,0.00551248]
[1772954530339,0.49924376,1956.5,1956.3,1.2779226]
[1772954530675,0.002,1956.5,1956.3,1.28343508]
[1772954530943,0.002,1956.5,1955.8,5.11347443]
[1772954530944,0.002,1956.5,1955.9,0.20551248]
[1772954532552,0.002,1956.5,1956.1,0.325114]
[1772954532731,0.002,1956.4,1956.1,0.325114]
[1772954533832,0.4899187,1956.5,1956.1,0.32107751]
[1772954534142,0.4899187,1956.6,1956.1,0.32107751]
[1772954534337,0.4899187,1956.6,1956.0,1.2781186]
[1772954534338,0.002,1956.8,1956.2,0.32107751]
[1772954534743,0.002,1956.8,1956.4,0.31918319]
[1772954536832,0.002,1956.8,1956.5,1.59308541]
[1772954538258,0.4899187,1956.8,1956.5,1.59308541]
[1772954538459,0.4899187,1956.8,1956.2,1.282]
[1772954538641,0.4899187,1956.8,1956.2,2.55998793]
[1772954539052,0.4879187,1956.7,1956.2,2.55998793]
[1772954539466,0.4879187,1956.7,1956.2,2.87129622]
[1772954539763,0.002,1956.8,1956.3,0.31130829]
[1772954539927,0.4899187,1956.8,1956.3,0.31130829]
[1772954542264,0.4899187,1956.8,1956.4,1.27785728]
[1772954542762,0.4899187,1956.8,1956.4,1.58322677]
[1772954543353,0.4879187,1956.7,1956.4,1.27785728]
[1772954543551,0.4879187,1956.7,1956.3,1.27789096]
[1772954544537,0.4879187,1956.7,1956.4,0.001]
[1772954545045,0.4899187,1956.7,1956.4,0.001]
[1772954545243,0.002,1956.7,1956.4,0.30047704]
[1772954545564,0.002,1956.8,1956.4,0.30047704]
[1772954545938,0.4899187,1956.8,1956.4,0.30047704]
[1772954546577,0.002,1956.8,1956.4,0.30047704]
[1772954546935,0.002,1956.9,1956.6,0.29563228]
[1772954547147,0.4899187,1956.9,1956.5,0.29563228]
[1772954547831,0.00353886,1957.0,1956.4,1.27881276]
[1772954548037,0.002,1957.1,1956.5,0.29174639]
[1772954548266,0.002,1957.1,1956.7,0.29174639]
[1772954548566,0.4899187,1957.1,1956.7,0.29174639]
[1772954549148,0.4899187,1957.1,1956.8,1.27759607]
[1772954550681,0.002,1957.1,1956.9,0.45629472]
[1772954550968,0.4899187,1957.4,1957.0,0.45629472]
[1772954550969,0.002,1957.4,1957.0,0.45629472]
[1772954551169,0.002,1957.4,1957.1,1.73369495]
[1772954552267,0.002,1957.4,1957.1,3.03569495]
[1772954552472,0.002,1957.4,1957.2,0.4930411]
[1772954553468,0.002,1957.4,1957.2,1.77032781]
[1772954557290,0.002,1957.3,1957.2,1.77032781]
[1772954557461,0.002,1957.4,1957.2,1.77032781]
[1772954560185,0.002,1957.4,1957.2,1.77037356]
[1772954560380,0.002,1957.4,1957.2,1.7703708]
[1772954564368,0.002,1957.4,1957.2,1.77036964]
[1772954564572,0.52857541,1957.4,1957.1,1.302]
[1772954564775,0.52857541,1957.4,1957.1,2.57938194]
[1772954565097,0.52857541,1957.4,1957.1,3.07242304]
[1772954566101,0.52857541,1957.4,1957.1,2.57938194]
[1772954567160,0.52857541,1957.4,1956.7,0.4930411]
[1772954567161,1.2792165,1957.4,1956.7,0.4930411]
[1772954567396,1.2792165,1957.4,1956.6,0.4940411]
[1772954567397,0.52657541,1957.3,1956.6,0.4940411]
[1772954567566,0.52657541,1957.3,1956.6,1.309]
[1772954568298,0.52657541,1957.3,1956.6,1.8020411]
[1772954569292,0.52657541,1957.1,1956.7,0.001]
[1772954570907,0.52657541,1957.1,1956.5,0.001]
[1772954571898,1.2774655,1957.0,1956.5,0.001]
[1772954572099,0.52657541,1956.9,1956.5,0.001]
[1772954574509,0.52657541,1956.7,1956.5,0.001]
[1772954575206,1.80415568,1956.9,1956.5,0.4940411]
[1772954575772,0.52657541,1956.8,1956.5,0.4940411]
[1772954577084,1.80419896,1956.8,1956.5,0.4940411]
[1772954578316,1.27762355,1956.8,1956.5,0.001]
[1772954578515,1.80419896,1956.8,1956.5,0.001]
[1772954579316,0.52657541,1956.7,1956.5,0.001]
[1772954579692,0.52657541,1956.7,1956.4,0.001]
[1772954581189,0.52657541,1956.7,1956.6,0.001]
[1772954581390,1.80423677,1956.7,1956.6,0.001]
[1772954583519,0.5035053,1956.6,1956.3,0.001]
[1772954586729,1.27779197,1956.5,1956.3,0.001]
[1772954586919,0.5035053,1956.4,1956.1,0.001]
[1772954588919,0.5035053,1956.2,1956.1,0.001]
[1772954589227,0.5035053,1956.2,1955.8,0.50949459]
[1772954591438,1.78155856,1956.1,1955.8,0.50949459]
[1772954592535,5.11117949,1956.5,1955.9,0.50849459]
[1772954592835,0.5035053,1956.3,1955.9,0.50849459]
[1772954593536,0.5035053,1956.3,1955.9,0.50949459]
[1772954593738,1.27798793,1956.2,1955.9,0.50949459]
[1772954595046,0.5035053,1956.1,1955.9,0.001]
[1772954595442,0.5035053,1956.0,1955.9,0.001]
[1772954595651,6.89351491,1956.0,1955.9,0.001]
[1772954595968,0.5035053,1955.9,1955.7,0.001]
[1772954596246,5.11195174,1956.4,1955.7,0.001]
[1772954596247,1.78145554,1956.3,1955.7,0.50949459]
[1772954596747,0.5035053,1956.3,1955.7,0.50949459]
[1772954596923,0.5035053,1956.5,1955.9,0.50849459]
[1772954597124,0.5035053,1956.4,1955.9,0.50849459]
[1772954597732,6.89351491,1956.3,1955.9,1.27818395]
[1772954598053,0.5035053,1956.2,1955.8,3.09769998]
[1772954598278,6.89351491,1956.2,1955.8,3.09769998]
[1772954598451,6.89351491,1956.2,1955.9,0.50849459]
[1772954599353,6.39000961,1956.2,1955.9,0.50849459]
[1772954600055,6.39000961,1956.2,1956.0,1.78661319]
[1772954600953,6.39000961,1956.2,1956.0,0.50849459]
[1772954601251,6.89351491,1956.2,1955.9,1.27813685]
[1772954601446,6.89351491,1956.1,1955.8,2.58924445]
[1772954602152,0.5035053,1956.1,1955.8,2.58924445]
[1772954602454,6.89351491,1956.1,1955.7,1.78776879]
[1772954605256,6.89351491,1956.1,1955.8,0.50849459]
[1772954605430,6.39000961,1956.1,1955.8,0.50849459]
[1772954606222,6.39000961,1956.1,1955.9,0.50949459]
[1772954606559,6.39200961,1956.1,1955.9,0.50949459]
[1772954606946,0.002,1956.1,1956.0,1.2781186]
[1772954608062,0.002,1956.2,1956.0,1.78661319]
[1772954610560,0.002,1956.2,1956.0,1.2781186]
[1772954610762,0.5055053,1956.2,1956.0,1.2781186]
[1772954610931,0.002,1956.2,1956.1,0.50849459]
[1772954611331,0.002,1956.4,1956.1,0.50849459]
[1772954613441,0.64452904,1956.4,1956.1,0.50849459]
[1772954613637,0.64452904,1956.4,1955.9,0.001]
[1772954613837,0.64452904,1956.4,1955.9,1.27917737]
[1772954614850,0.64452904,1956.4,1955.9,0.001]
[1772954615649,0.64252904,1956.2,1955.9,0.001]
[1772954617769,1.9205823,1956.1,1955.9,0.001]
[1772954618078,0.64252904,1956.1,1955.9,0.001]
[1772954618768,0.64252904,1956.1,1956.0,0.001]
[1772954624868,0.64252904,1956.2,1956.0,0.001]
[1772954626178,1.92053018,1956.2,1956.0,0.001]
[1772954626352,0.64252904,1956.2,1956.0,0.001]
[1772954630375,0.64252904,1956.2,1956.1,0.001]
[1772954631175,0.002,1956.3,1956.1,0.001]
[1772954631379,0.64452904,1956.3,1956.1,0.001]
[1772954631673,1.92245466,1956.3,1956.1,0.001]
[1772954632077,0.64452904,1956.3,1956.1,0.001]
[1772954632284,1.92245605,1956.3,1956.1,0.001]
[1772954633685,0.64252904,1956.2,1955.9,0.001]
[1772954634984,0.64252904,1956.1,1955.7,0.001]
[1772954635188,0.64252904,1955.9,1955.5,0.001]
[1772954635393,0.64252904,1955.7,1955.5,0.001]
[1772954636694,5.1128504,1955.9,1955.5,0.66357292]
[1772954636695,0.64252904,1955.9,1955.5,0.66357292]
[1772954637766,0.64252904,1955.9,1955.5,0.001]
[1772954640155,0.64252904,1955.8,1955.5,0.001]
[1772954640378,0.64252904,1956.1,1955.5,0.66357292]
[1772954641659,0.64252904,1956.1,1955.6,0.001]
[1772954642084,0.64452904,1956.1,1955.6,0.001]
[1772954642290,0.60217402,1955.9,1955.6,0.001]
[1772954642587,0.60217402,1955.9,1955.6,0.64099802]
[1772954646578,0.60217402,1955.9,1955.6,1.91933681]
[1772954646777,0.60217402,1955.9,1955.6,0.64099802]
[1772954648194,0.60217402,1955.9,1955.6,1.91937534]
[1772954648368,0.60217402,1955.9,1955.6,0.64099802]
[1772954648568,0.60217402,1955.9,1955.6,1.91936071]
[1772954648797,0.60217402,1955.9,1955.6,0.64099802]
[1772954651099,0.60217402,1955.9,1955.6,1.91937096]
[1772954652100,0.60217402,1955.9,1955.6,0.64099802]
[1772954652697,0.60217402,1955.9,1955.6,1.91934984]
[1772954653400,0.60217402,1955.9,1955.6,0.64099802]
[1772954653900,0.60217402,1955.9,1955.7,0.001]
[1772954654284,0.002,1955.8,1955.7,0.001]
[1772954654487,0.63283436,1955.8,1955.7,0.001]
[1772954656701,0.002,1955.8,1955.6,0.59564543]
[1772954657600,0.002,1955.8,1955.6,1.87401075]
[1772954657807,0.002,1955.8,1955.6,0.59564543]
[1772954661199,0.63283436,1955.8,1955.6,0.001]
[1772954661796,0.63283436,1955.8,1955.4,0.001]
[1772954661992,1.27831466,1955.7,1955.4,0.001]
[1772954662301,0.63083436,1955.6,1955.4,0.001]
[1772954664407,0.63083436,1955.7,1955.4,0.59564543]
[1772954666910,1.90915195,1955.7,1955.4,0.59564543]
[1772954667313,0.63083436,1955.7,1955.4,0.59564543]
[1772954667695,0.63083436,1955.7,1955.5,0.001]
[1772954668012,0.63083436,1955.6,1955.5,0.001]
[1772954668398,0.63083436,1955.6,1955.2,1.87428564]
[1772954668710,0.63083436,1955.6,1955.3,0.59464543]
[1772954668903,0.63083436,1955.6,1955.3,1.87321839]
[1772954669213,0.63083436,1955.6,1955.3,0.59464543]
[1772954669514,0.63083436,1955.5,1955.2,0.001]
[1772954670383,0.002,1955.7,1955.3,0.59464543]
[1772954670583,0.63283436,1955.7,1955.3,0.59464543]
[1772954671313,1.28034568,1955.7,1955.3,0.59464543]
[1772954671478,0.63083436,1955.6,1955.3,0.59464543]
[1772954671682,0.63083436,1955.6,1955.2,0.59564543]
[1772954672412,0.63083436,1955.6,1955.2,0.001]
[1772954672582,0.63083436,1955.6,1955.2,1.84799551]
[1772954673511,0.56136655,1955.5,1955.2,0.001]
[1772954675515,1.83983158,1955.5,1955.2,0.001]
[1772954675697,0.56136655,1955.4,1955.2,0.001]
[1772954676287,0.56136655,1955.4,1955.0,0.00153886]
[1772954676628,0.56136655,1955.4,1955.1,0.56837127]
[1772954676925,0.56336655,1955.7,1955.1,0.56837127]
[1772954677113,1.84169101,1955.7,1955.1,0.56837127]
[1772954677290,0.56136655,1955.6,1955.1,0.56837127]
[1772954678791,1.83974666,1955.6,1955.3,0.56837127]
[1772954680914,0.56336655,1955.6,1955.3,0.56837127]
[1772954682592,1.84174954,1955.6,1955.3,0.56837127]
[1772954682793,0.56336655,1955.6,1955.3,1.84693598]
[1772954683122,0.002,1955.6,1955.4,0.56837127]
[1772954684919,0.002,1955.6,1955.5,0.56837127]
[1772954685286,0.002,1955.7,1955.5,0.56837127]
[1772954686991,0.002,1955.7,1955.6,1.27838003]
[1772954687912,0.002,1955.7,1955.6,1.8467513]
[1772954688361,0.002,1955.7,1955.6,0.56837127]
[1772954689325,0.002,1955.7,1955.6,1.8467513]
[1772954690624,0.002,1955.9,1955.7,0.56837127]
[1772954690815,0.002,1956.1,1955.7,0.56837127]
[1772954691390,0.002,1956.1,1955.9,0.56837127]
[1772954692605,0.56336655,1956.1,1955.8,0.56837127]
[1772954693328,0.56336655,1956.1,1955.6,2.5883292]
[1772954693642,0.56136655,1956.0,1955.6,2.5883292]
[1772954694130,0.56136655,1956.0,1955.7,0.001]
[1772954694537,0.56336655,1956.0,1955.7,0.001]
[1772954698943,1.84149933,1956.0,1955.7,0.001]
[1772954699142,0.56136655,1955.9,1955.7,0.001]
[1772954701249,1.2782493,1955.8,1955.7,0.001]
[1772954701419,1.83961585,1955.8,1955.7,0.001]
[1772954701742,0.56136655,1955.8,1955.7,0.001]
[1772954701961,0.56136655,1955.8,1955.4,1.314]
[1772954703035,0.56136655,1955.8,1955.4,0.001]
[1772954703942,0.52359886,1955.6,1955.4,0.001]
[1772954705344,1.2783003,1955.8,1955.4,0.52912763]
[1772954705641,1.80189916,1955.8,1955.4,0.52912763]
[1772954706621,0.52359886,1955.7,1955.5,0.001]
[1772954706937,0.52559886,1955.7,1955.5,0.001]
[1772954707154,0.52559886,1955.7,1955.2,0.52912763]
[1772954707727,0.52559886,1955.7,1955.2,0.001]
[1772954708649,0.52359886,1955.5,1955.2,0.001]
[1772954709160,1.27838003,1955.6,1955.0,0.00253886]
[1772954709161,0.52359886,1955.3,1955.0,0.00253886]
[1772954709457,0.52359886,1955.3,1954.6,0.52812763]
[1772954709848,0.52359886,1955.3,1954.5,1.304]
[1772954710157,1.27838003,1955.6,1954.4,1.80726144]
[1772954710158,0.52359886,1955.1,1954.4,0.52812763]
[1772954710327,0.52359886,1955.1,1954.4,1.80727075]
[1772954710962,1.27877237,1955.0,1954.4,1.80727075]
[1772954711140,0.52359886,1954.9,1954.4,1.80727075]
[1772954711460,0.52359886,1954.9,1954.4,1.80728863]
[1772954712025,0.52359886,1955.3,1954.5,0.52812763]
[1772954712228,5.11392009,1955.5,1954.5,0.52812763]
[1772954712229,1.80208498,1955.5,1954.5,0.52812763]
[1772954712462,0.52359886,1955.4,1954.5,0.52812763]
[1772954713176,0.52359886,1955.4,1954.7,0.52812763]
[1772954713331,1.8021611,1955.4,1954.7,0.52812763]
[1772954713965,0.52359886,1955.3,1954.7,0.52812763]
[1772954714264,0.52359886,1955.3,1954.8,0.52812763]
[1772954716360,0.52359886,1955.2,1954.8,0.52812763]
[1772954717539,0.52359886,1955.2,1954.9,0.52812763]
[1772954718764,0.52359886,1955.2,1954.9,0.52912763]
[1772954719440,1.80224271,1955.2,1954.9,0.52912763]
[1772954719637,0.52359886,1955.1,1954.9,0.001]
[1772954721148,1.27863359,1955.3,1954.9,0.52912763]
[1772954721348,1.80223245,1955.3,1954.9,0.52912763]
[1772954721535,0.52359886,1955.2,1954.9,0.52912763]
[1772954722240,0.52359886,1955.2,1954.9,0.001]
[1772954723669,1.80230583,1955.1,1954.9,0.001]
[1772954724081,0.52359886,1955.0,1954.9,0.001]
[1772954724941,0.52359886,1955.0,1954.6,0.001]
[1772954725349,0.52359886,1955.0,1954.7,0.52812763]
[1772954725553,0.52359886,1955.1,1954.7,0.52812763]
[1772954726055,0.52359886,1955.1,1954.8,1.80703084]
[1772954726371,0.52359886,1955.2,1954.9,0.52812763]
[1772954727372,0.52359886,1955.2,1954.8,1.80703084]
[1772954727562,0.52359886,1955.2,1954.8,0.52812763]
[1772954728382,1.8022592,1955.2,1954.8,0.52812763]
[1772954728543,0.52359886,1955.1,1954.8,0.52812763]
[1772954728744,0.52359886,1955.1,1954.8,1.80702307]
[1772954729875,0.52359886,1955.1,1954.8,0.52812763]
[1772954730878,0.52359886,1955.1,1954.8,1.80702739]
[1772954731382,0.52359886,1955.1,1954.9,0.001]
[1772954731953,0.52559886,1955.1,1954.9,0.001]
[1772954736690,0.002,1955.1,1954.9,0.52543394]
[1772954737380,1.7774967,1955.1,1954.9,0.001]
[1772954737879,0.49877941,1955.1,1954.9,0.001]
[1772954738791,1.77749176,1955.1,1954.9,0.001]
[1772954738990,0.49877941,1955.1,1954.9,0.001]
[1772954739210,1.77749911,1955.1,1954.9,0.001]
[1772954739373,0.49677941,1955.0,1954.8,0.001]
[1772954743288,0.002,1955.1,1954.8,0.52543394]
[1772954743591,0.49877941,1955.1,1954.8,0.001]
[1772954743797,1.77749298,1955.1,1954.8,0.001]
[1772954745072,1.77749298,1955.1,1954.9,0.001]
[1772954745272,0.49877941,1955.0,1954.9,0.001]
[1772954748472,1.77755178,1955.0,1954.9,0.001]
[1772954749580,0.49677941,1954.9,1954.5,1.27909759]
[1772954749772,0.49677941,1954.9,1954.5,1.80353153]
[1772954750099,0.49677941,1954.9,1954.6,0.52443394]
[1772954750302,1.77562276,1954.9,1954.6,0.52443394]
[1772954750606,0.49677941,1954.9,1954.6,0.52443394]
[1772954751301,1.28082064,1955.0,1954.6,0.52443394]
[1772954751302,0.002,1955.0,1954.6,0.52443394]
[1772954752205,0.002,1955.0,1954.8,0.52443394]
[1772954753982,0.49877941,1955.0,1954.6,1.8034587]
[1772954754175,0.49877941,1955.0,1954.5,5.11626749]
[1772954754475,0.49877941,1955.0,1954.7,0.52443394]
[1772954757409,0.002,1955.0,1954.8,0.52443394]
[1772954759738,0.002,1955.0,1954.9,0.52443394]
[1772954760033,0.002,1955.3,1954.9,0.52443394]
[1772954762029,0.002,1955.3,1955.0,1.27877237]
[1772954762237,0.002,1955.3,1955.1,0.52443394]
[1772954764249,0.002,1955.3,1955.1,1.80311979]
[1772954767106,0.002,1955.3,1955.2,0.50778496]
[1772954768736,0.002,1955.3,1955.1,0.50778496]
[1772954771142,0.002,1955.3,1955.1,1.78644936]
[1772954772442,0.002,1955.3,1955.2,0.001]
[1772954774017,0.51258457,1955.3,1955.2,0.001]
[1772954778555,0.002,1955.3,1955.2,0.50878496]
[1772954779644,0.51258457,1955.5,1955.3,0.50778496]
[1772954779645,0.002,1955.5,1955.3,0.50778496]
[1772954782148,0.51258457,1955.5,1955.2,0.50878496]
[1772954782361,0.51258457,1955.5,1955.2,0.001]
[1772954786661,0.51258457,1955.5,1955.3,0.001]
[1772954786856,0.002,1955.4,1955.3,0.001]
[1772954787052,0.51258457,1955.4,1955.3,0.001]
[1772954801881,0.002,1955.4,1955.3,0.001]
[1772954817174,0.002,1955.6,1955.4,0.49069695]
[1772954818574,0.4605202,1955.6,1955.3,0.001]
[1772954818776,0.4585202,1955.5,1955.3,0.001]
[1772954823304,0.002,1955.6,1955.3,0.001]
[1772954823520,0.49996201,1955.6,1955.3,0.001]
[1772954824003,1.77837752,1955.6,1955.3,0.001]
[1772954824170,0.49996201,1955.6,1955.4,0.001]
[1772954824701,0.002,1955.5,1955.4,0.001]
[1772954824901,0.49996201,1955.5,1955.4,0.001]
[1772954826201,0.002,1955.5,1955.4,0.001]
[1772954830922,0.49996201,1955.5,1955.4,0.001]
[1772954832814,0.002,1955.5,1955.4,0.001]
[1772954833811,0.49996201,1955.5,1955.4,0.001]
[1772954835008,0.49996201,1955.5,1955.3,0.001]
[1772954835186,0.49796201,1955.4,1955.2,0.001]
[1772954836588,0.49796201,1955.4,1955.3,0.001]
[1772954837913,0.49796201,1955.3,1955.0,0.001]
[1772954840018,1.77654153,1955.3,1955.0,0.4652933]
[1772954840193,0.49796201,1955.3,1955.0,0.4652933]
[1772954841320,0.49796201,1955.2,1955.0,0.001]
[1772954842216,1.77664762,1955.2,1955.0,0.001]
[1772954842598,0.49796201,1955.2,1955.0,0.001]
[1772954843815,1.776618,1955.2,1955.0,0.001]
[1772954844027,0.49796201,1955.1,1955.0,0.001]
[1772954844719,1.77666898,1955.1,1955.0,0.001]
[1772954845517,5.11432074,1955.3,1955.0,0.001]
[1772954845518,1.77658925,1955.3,1955.0,0.001]
[1772954845723,1.77658925,1955.3,1955.0,0.4652933]
[1772954847497,1.77658925,1955.3,1955.0,0.001]